[Event "7th Ali Ipek Memorial 2019"]
[Site "Ankara"]
[Date "2019.03.08"]
[Round "3.11"]
[White "Ozen, Halil Ibrahim"]
[Black "Alkan, Sukru"]
[Result "1-0"]
[ECO "D15"]
[WhiteElo "1637"]
[BlackElo "1455"]
[Annotator "NA RC"]
[PlyCount "95"]
[EventDate "2019.03.06"]
[EventType "swiss"]
[EventCountry "TUR"]
[SourceTitle "playchess.com"]
[Source "ChessBase"]
[SourceQuality "1"]
[TimeControl "5400+30"]

1. Nf3 {[%emt 0:01:30]} d5 {[%emt 0:00:30]} 2. c4 {[%emt 0:02:30]} c6 {[%emt 0:00:00]} 3. d4 {[%emt 0:00:30]} Nf6 {[%emt 0:00:00]} 4. Nc3 {[%emt 0:00:30]} Bf5 {[%emt 0:00:30]} 5. cxd5 {[%emt 0:06:30]} Nxd5 {[%emt 0:01:30]} 6. Qb3 {[%emt 0:00:30]} Nxc3 {[%emt 0:00:30]} 7. Qxb7 {[%emt 0:01:30]} Nd7 {[%emt 0:00:30]} 8. bxc3 {[%emt 0:00:00]} Qc8 {[%emt 0:01:30]} 9. Qb3 {[%emt 0:01:00]} e6 {[%emt 0:00:30]} 10. Bf4 {[%emt 0:00:30]} Be7 {[%emt 0:00:00]} 11. g3 {[%emt 0:08:30]} O-O {[%emt 0:02:00]} 12. Bg2 {[%emt 0:00:30]} Be4 {[%emt 0:00:30]} 13. O-O {[%emt 0:03:30]} c5 {[%emt 0:00:30]} 14. Bh3 {[%emt 0:04:30]} Qc6 {[%emt 0:00:30]} 15. Nd2 {[%emt 0:03:30]} c4 {[%emt 0:03:30]} 16. Qd1 {[%emt 0:10:30]} Nf6 {[%emt 0:01:30]} 17. f3 {[%emt 0:01:30]} Bg6 {[%emt 0:00:30]} 18. e4 {[%emt 0:00:00]} Nd7 {[%emt 0:01:30]} 19. Qe2 {[%emt 0:03:00]} Nb6 {[%emt 0:00:30]} 20. Bg2 {[%emt 0:02:30]} Rac8 {[%emt 0:01:30]} 21. Be3 {[%emt 0:00:30]} Bd6 {[%emt 0:00:30]} 22. f4 {[%emt 0:00:30]} Qb5 {[%emt 0:01:30]} 23. Rfb1 {[%emt 0:05:30]} Qa5 {[%emt 0:00:30]} 24. Rc1 {[%emt 0:09:30]} Ba3 {[%emt 0:01:30]} 25. Rc2 {[%emt 0:00:30]} Qa4 {[%emt 0:00:00]} 26. Nf1 {[%emt 0:03:30]} Rfe8 {[%emt 0:02:00]} 27. g4 {[%emt 0:00:30]} f5 {[%emt 0:00:30]} 28. gxf5 {[%emt 0:00:30]} exf5 {[%emt 0:00:30]} 29. e5 {[%emt 0:00:30]} Bf7 {[%emt 0:00:30]} 30. Ng3 {[%emt 0:00:00]} g6 {[%emt 0:00:00]} 31. Bc1 {[%emt 0:02:00]} Bf8 {[%emt 0:01:00]} 32. Rb1 {[%emt 0:02:30]} Bd5 {[%emt 0:01:30]} 33. Rcb2 {[%emt 0:03:30]} Qc6 {[%emt 0:00:00]} 34. Bh3 {[%emt 0:02:30]} Ba3 {[%emt 0:00:00]} 35. Rxb6 {[%emt 0:00:30]} axb6 {[%emt 0:00:30]} 36. Bxa3 {[%emt 0:00:30]} Ra8 {[%emt 0:00:30]} 37. Bb4 {[%emt 0:00:30]} Bf3 {[%emt 0:01:30]} 38. Qc2 {[%emt 0:02:30]} Bd5 {[%emt 0:00:30]} 39. a3 {[%emt 0:00:00]} h5 {[%emt 0:00:30]} 40. Re1 {[%emt 0:00:00]} h4 {[%emt 0:00:30]} 41. Nf1 {[%emt 0:00:30]} Be4 {[%emt 0:00:00]} 42. Bg2 {[%emt 0:01:30]} Bxg2 {[%emt 0:01:00]} 43. Qxg2 {[%emt 0:00:00]} Qxg2+ {[%emt 0:01:30]} 44. Kxg2 {[%emt 0:00:00]} Kf7 {[%emt 0:00:00]} 45. Kh3 {[%emt 0:01:30]} Ke6 {[%emt 0:00:00]} 46. Ne3 {[%emt 0:00:00]} Rad8 {[%emt 0:00:00]} 47. d5+ {[%emt 0:00:00]} Rxd5 {[%emt 0:00:00]} 48. Nxd5 {[%emt 0:00:00]} 1-0

[Event "7th Ali Ipek Memorial 2019"]
[Site "Ankara"]
[Date "2019.03.08"]
[Round "3.12"]
[White "Kayaman, Metin"]
[Black "Karabacak, Ceylin Deniz"]
[Result "0-1"]
[ECO "D37"]
[WhiteElo "1667"]
[BlackElo "1392"]
[Annotator "NA RC"]
[PlyCount "136"]
[EventDate "2019.03.06"]
[EventType "swiss"]
[EventCountry "TUR"]
[SourceTitle "playchess.com"]
[Source "ChessBase"]
[SourceQuality "1"]
[TimeControl "5400+30"]

1. d4 {[%emt 0:00:30]} Nf6 {[%emt 0:00:30]} 2. Nf3 {[%emt 0:00:30]} d5 {[%emt 0:00:30]} 3. c4 {[%emt 0:00:30]} e6 {[%emt 0:00:30]} 4. Nc3 {[%emt 0:00:30]} Be7 {[%emt 0:00:30]} 5. Bf4 {[%emt 0:01:30]} O-O {[%emt 0:07:30]} 6. e3 {[%emt 0:00:30]} c5 {[%emt 0:04:30]} 7. dxc5 {[%emt 0:05:30]} Bxc5 {[%emt 0:00:30]} 8. Qc2 {[%emt 0:01:30]} dxc4 {[%emt 0:16:30]} 9. Bxc4 {[%emt 0:01:30]} a6 {[%emt 0:02:30]} 10. Rd1 {[%emt 0:02:30]} Qe7 {[%emt 0:01:30]} 11. O-O {[%emt 0:02:30]} b5 {[%emt 0:00:30]} 12. Bd3 {[%emt 0:02:30]} Bb7 {[%emt 0:01:30]} 13. a3 {[%emt 0:01:30]} Nbd7 {[%emt 0:06:30]} 14. b4 {[%emt 0:00:30]} Bb6 {[%emt 0:03:30]} 15. Bd6 {[%emt 0:00:30]} Qd8 {[%emt 0:03:30]} 16. Bxf8 {[%emt 0:00:30]} Qxf8 {[%emt 0:00:00]} 17. Ne4 {[%emt 0:01:30]} Rc8 {[%emt 0:01:00]} 18. Nxf6+ {[%emt 0:00:30]} Nxf6 {[%emt 0:01:30]} 19. Qb1 {[%emt 0:00:00]} Nd5 {[%emt 0:08:30]} 20. Rc1 {[%emt 0:02:00]} Rxc1 {[%emt 0:07:30]} 21. Rxc1 {[%emt 0:01:30]} g6 {[%emt 0:03:30]} 22. Be4 {[%emt 0:03:30]} Qd6 {[%emt 0:02:30]} 23. Bxd5 {[%emt 0:04:30]} Qxd5 {[%emt 0:02:30]} 24. Rd1 {[%emt 0:02:30]} Qh5 {[%emt 0:02:30]} 25. e4 {[%emt 0:03:30]} Qg4 {[%emt 0:00:30]} 26. h3 {[%emt 0:01:30]} Qxe4 {[%emt 0:02:30]} 27. Qxe4 {[%emt 0:00:30]} Bxe4 {[%emt 0:00:30]} 28. Rd6 {[%emt 0:00:00]} Bc7 {[%emt 0:04:25]} 29. Rxa6 {[%emt 0:00:00]} Kf8 {[%emt 0:01:57]} 30. Nd4 {[%emt 0:01:30]} Bd3 {[%emt 0:03:03]} 31. Ra8+ {[%emt 0:01:30]} Ke7 {[%emt 0:03:35]} 32. Nc6+ {[%emt 0:01:30]} Kd7 {[%emt 0:02:09]} 33. Nb8+ {[%emt 0:03:30]} Ke7 {[%emt 0:03:34]} 34. Ra7 {[%emt 0:02:30]} Kd6 {[%emt 0:01:34]} 35. Na6 {[%emt 0:00:30]} Bb6 {[%emt 0:02:03]} 36. Rxf7 {[%emt 0:00:00]} Bd4 {[%emt 0:00:45]} 37. Nb8 {[%emt 0:03:00]} e5 {[%emt 0:00:59]} 38. Rd7+ {[%emt 0:02:30]} Ke6 {[%emt 0:00:30]} 39. Rxh7 {[%emt 0:00:00]} Bb2 {[%emt 0:00:00]} 40. Ra7 {[%emt 0:00:00]} Kd5 {[%emt 0:00:08]} 41. Rd7+ {[%emt 0:03:30]} Kc4 {[%emt 0:00:07]} 42. Nc6 {[%emt 0:00:30]} e4 {[%emt 0:01:14]} 43. Na5+ {[%emt 0:01:30]} Kc3 {[%emt 0:00:30]} 44. Rc7+ {[%emt 0:00:30]} Kd2 {[%emt 0:00:36]} 45. Nb3+ {[%emt 0:00:30]} Kd1 {[%emt 0:00:52]} 46. Ra7 {[%emt 0:00:30]} Ke2 {[%emt 0:00:30]} 47. Rc7 {[%emt 0:00:30]} Bxa3 {[%emt 0:00:52]} 48. Nd4+ {[%emt 0:02:30]} Kd2 {[%emt 0:00:29]} 49. Rb7 {[%emt 0:00:30]} Bxb4 {[%emt 0:00:30]} 50. Nxb5 {[%emt 0:00:00]} Bc5 {[%emt 0:00:41]} 51. Nc7 {[%emt 0:00:00]} Ke1 {[%emt 0:00:30]} 52. Rb2 {[%emt 0:00:30]} Bd4 {[%emt 0:00:30]} 53. Ra2 {[%emt 0:00:30]} Bb1 {[%emt 0:00:24]} 54. Ra4 {[%emt 0:01:30]} Bxf2+ {[%emt 0:00:30]} 55. Kh1 {[%emt 0:00:00]} Bd3 {[%emt 0:00:30]} 56. Ne6 {[%emt 0:01:00]} e3 {[%emt 0:00:30]} 57. Nf4 {[%emt 0:00:30]} Bc2 {[%emt 0:00:32]} 58. Ra2 {[%emt 0:00:00]} Bd1 {[%emt 0:00:27]} 59. g4 {[%emt 0:01:00]} e2 {[%emt 0:00:32]} 60. Kg2 {[%emt 0:00:30]} Bb3 {[%emt 0:00:30]} 61. Nd3+ {[%emt 0:00:00]} Kd1 {[%emt 0:00:09]} 62. Nxf2+ {[%emt 0:00:00]} Ke1 {[%emt 0:00:50]} 63. Rb2 {[%emt 0:00:30]} Bd5+ {[%emt 0:00:00]} 64. Ne4 {[%emt 0:00:30]} Bxe4+ {[%emt 0:00:00]} 65. Kg1 {[%emt 0:00:30]} Kd1 {[%emt 0:00:00]} 66. Rxe2 {[%emt 0:01:30]} Kxe2 {[%emt 0:00:00]} 67. Kh2 {[%emt 0:01:30]} Kf3 {[%emt 0:00:36]} 68. g5 {[%emt 0:02:30]} Kf4 {[%emt 0:01:07]} 0-1

[Event "7th Ali Ipek Memorial 2019"]
[Site "Ankara"]
[Date "2019.03.09"]
[Round "4.1"]
[White "Guven, Oguz Kagan"]
[Black "Cevizci, Yusuf Baran"]
[Result "1-0"]
[ECO "E61"]
[WhiteElo "2096"]
[BlackElo "1691"]
[Annotator "NA"]
[PlyCount "95"]
[EventDate "2019.03.06"]
[EventType "swiss"]
[EventCountry "TUR"]
[SourceTitle "playchess.com"]
[Source "ChessBase"]
[SourceQuality "1"]
[TimeControl "5400+30"]

1. d4 {[%emt 0:00:30]} Nf6 {[%emt 0:00:30]} 2. Nf3 {[%emt 0:00:00]} g6 {[%emt 0:00:30]} 3. c4 {[%emt 0:02:00]} d6 {[%emt 0:00:30]} 4. Nc3 {[%emt 0:00:30]} Bg7 {[%emt 0:00:00]} 5. Bf4 {[%emt 0:01:30]} O-O {[%emt 0:02:00]} 6. h3 {[%emt 0:00:30]} Nbd7 {[%emt 0:07:30]} 7. e3 {[%emt 0:00:00]} c5 {[%emt 0:01:30]} 8. Be2 {[%emt 0:00:00]} b6 {[%emt 0:01:30]} 9. O-O {[%emt 0:00:30] LiveBook: 19 Games} Bb7 {[%emt 0:00:30]} 10. d5 {[%emt 0:00:30] E61: King's Indian: Early deviations for White, including Smyslov System} a6 {[%emt 0:03:30]} 11. a4 {[%emt 0:00:30]} Rb8 {[%emt 0:04:30]} (11... Qc7 12. e4 Rad8 13. Qd2 Bc8 14. Rfe1 Rfe8 15. Bf1 Nh5 16. Bh2 {½-½ (36) Karjakin,S (2783)-Nepomniachtchi,I (2751) chess.com INT 2017}) 12. e4 $146 {[%emt 0:01:30]} ({Predecessor:} 12. Qc2 Ne8 13. Rad1 Nc7 14. e4 Ba8 15. Rfe1 Ne8 {1-0 (26) Scarella,E (2380)-Martinez Andres,F Potrero de los Funes 1995}) 12... Qc7 {[%emt 0:02:30]} 13. Bh2 {[%emt 0:01:30]} Rbd8 {[%emt 0:05:30]} 14. Re1 {[%emt 0:00:30]} Rfe8 {[%emt 0:01:30]} 15. Bf1 {[%emt 0:02:30]} Ne5 {[%emt 0:00:30]} 16. Nh4 {[%emt 0:02:30]} g5 {[%emt 0:04:30]} 17. Nf5 {[%emt 0:00:30]} Ng6 {[%emt 0:00:30]} (17... Bc8 $16 {was called for.}) 18. Qd2 {[%emt 0:04:30]} h6 {[%emt 0:00:30] [#]} 19. f4 $1 {[%emt 0:03:30]} Nh7 {[%emt 0:06:30]} 20. Nxg7 {[%emt 0:14:30]} Kxg7 {[%emt 0:00:30]} 21. e5 {[%emt 0:00:30]} gxf4 {[%emt 0:03:30]} 22. Bxf4 {[%emt 0:03:30]} dxe5 {[%emt 0:00:30]} 23. Bxh6+ {[%emt 0:00:30]} Kh8 {[%emt 0:00:00]} 24. Qf2 {[%emt 0:12:30]} f6 $18 {[%emt 0:01:00]} (24... e6 $142 25. a5 bxa5 26. Rxa5 Rc8) 25. Bd3 {[%emt 0:19:30]} Rg8 {[%emt 0:04:30]} 26. Be4 {[%emt 0:06:30]} Ng5 {[%emt 0:11:30]} 27. Bxg5 {[%emt 0:00:30]} fxg5 {[%emt 0:00:30]} 28. Bxg6 {[%emt 0:01:30]} Rxg6 {[%emt 0:00:30]} 29. Qf5 {[%emt 0:00:30]} Rdg8 {[%emt 0:00:00]} 30. Qxe5+ {[%emt 0:00:00]} Qxe5 {[%emt 0:00:00]} 31. Rxe5 {[%emt 0:00:00]} g4 {[%emt 0:00:30]} 32. h4 {[%emt 0:00:30]} Bc8 {[%emt 0:00:30]} 33. Rxe7 {[%emt 0:01:30]} Rh6 {[%emt 0:00:30]} 34. g3 {[%emt 0:00:30]} Bf5 {[%emt 0:00:00]} 35. Rf1 {[%emt 0:00:30]} Bd3 {[%emt 0:00:00]} 36. Rf4 {[%emt 0:00:30]} Rd8 {[%emt 0:00:30]} 37. Kf2 {[%emt 0:00:00]} Rg8 {[%emt 0:00:30]} 38. Ke3 {[%emt 0:00:00]} Bc2 {[%emt 0:00:30]} 39. Kd2 {[%emt 0:00:30]} Bb3 {[%emt 0:00:00]} 40. Kd3 {[%emt 0:01:30]} Rd8 {[%emt 0:00:00]} 41. Ne4 {[%emt 0:00:30]} b5 {[%emt 0:00:00]} 42. axb5 {[%emt 0:00:30]} axb5 {[%emt 0:00:00]} 43. cxb5 {[%emt 0:01:30]} Bxd5 {[%emt 0:00:30]} 44. Kc3 {[%emt 0:02:19]} Bxe4 {[%emt 0:03:30]} 45. Rfxe4 {[%emt 0:00:30]} Rf6 {[%emt 0:00:00]} 46. Rxg4 {[%emt 0:01:11]} Rf3+ {[%emt 0:00:00]} 47. Kc4 {[%emt 0:00:00]} Rd2 {[%emt 0:00:30]} 48. Re5 {[%emt 0:01:01]} 1-0

[Event "7th Ali Ipek Memorial 2019"]
[Site "Ankara"]
[Date "2019.03.09"]
[Round "4.2"]
[White "Buker, Muhittin"]
[Black "Ozen, Halil Ibrahim"]
[Result "1-0"]
[ECO "E98"]
[WhiteElo "2009"]
[BlackElo "1637"]
[Annotator "NA"]
[PlyCount "106"]
[EventDate "2019.03.06"]
[EventType "swiss"]
[EventCountry "TUR"]
[SourceTitle "playchess.com"]
[Source "ChessBase"]
[SourceQuality "1"]
[TimeControl "5400+30"]

{[%evp 8,97,49,32767,32767,32767,32767,32767,32767,32767,32767,32767,54,55,44,-14,13,0,43,35,46,38,40,58,69,64,67,77,283,285,261,297,299,308,291,314,310,32767,32767,32767,32767,230,222,213,266,193,216,259,215,224,189,212,188,145,245,263,222,152,168,164,217,182,32767,32767,32767,32767,32767,32767,32767,32767,32767,32767,32767,32767,32767,32767,32767,32767,32767,32767,32767,5531,5118,32767,32767,32767,32767,32767,32767,29984,29983,29986]} 1. d4 {[%emt 0:00:30]} d6 {[%emt 0:00:30]} 2. Nf3 {[%emt 0:00:30]} Nf6 {[%emt 0:01:30]} 3. c4 {[%emt 0:00:30]} g6 {[%emt 0:02:30]} 4. Nc3 {[%emt 0:00:30]} Bg7 {[%emt 0:00:00]} 5. e4 {[%emt 0:00:30]} O-O {[%emt 0:00:00]} 6. Be2 {[%emt 0:00:30]} e5 {[%emt 0:00:00]} 7. O-O {[%emt 0:00:00]} Nc6 {[%emt 0:03:00]} 8. d5 {[%emt 0:00:00]} Ne7 {[%emt 0:00:30]} 9. Ne1 {[%emt 0:00:00]} Ne8 {[%emt 0:03:30]} 10. Nd3 {[%emt 0:00:00]} f5 {[%emt 0:06:30]} 11. Bd2 {[%emt 0:01:30]} (11. f3 $1 $14) 11... fxe4 {[%emt 0:06:30]} 12. Nxe4 {[%emt 0:00:30]} Bf5 {[%emt 0:02:30] E98: King's Indian: Classical Main Line: 9 Ne1} (12... Nf6 13. Nxf6+ Bxf6 14. Bg4 Nf5 15. Re1 Bd7 16. Bc3 a5 17. Rc1 b6 18. Rc2 Rf7 19. b3 Qf8 20. Re4 Qg7 {½-½ (44) Ehlvest,J (2606)-Smirin,I (2662) Khanty-Mansiysk 2009}) 13. f3 {[%emt 0:00:00]} c6 {[%emt 0:10:30]} 14. Qb3 {[%emt 0:04:00]} cxd5 $146 {[%emt 0:02:30]} ({Predecessor:} 14... Rb8 15. Ndf2 h6 16. Be3 c5 17. Qa3 a5 18. g4 Bxe4 19. Nxe4 g5 20. Bd3 {1-0 (38) Ivic,M (2244)-Sevo,I (2235) Zadar 2009}) 15. cxd5 {[%emt 0:01:30]} Qb6+ {[%emt 0:08:30]} 16. Qxb6 {[%emt 0:03:30]} axb6 {[%emt 0:00:30]} 17. g4 {[%emt 0:00:30]} Nxd5 $2 {[%emt 0:12:30]} ({Black should try} 17... Bd7 $14) 18. gxf5 {[%emt 0:01:30]} gxf5 {[%emt 0:02:30]} 19. Nc3 {[%emt 0:00:00]} Nec7 {[%emt 0:01:30]} 20. Nxd5 {[%emt 0:00:00]} Nxd5 {[%emt 0:00:30]} 21. Nb4 {[%emt 0:00:30]} Nf4 {[%emt 0:02:30]} 22. Bc4+ {[%emt 0:01:30]} Kh8 {[%emt 0:01:30]} 23. Nd5 {[%emt 0:00:30]} Rac8 {[%emt 0:00:00]} 24. Nxf4 {[%emt 0:03:30]} ({But not} 24. Nxb6 Rc6 $18) 24... Rxc4 {[%emt 0:03:00]} 25. Ne6 {[%emt 0:01:30]} Rf6 {[%emt 0:01:30]} (25... Rg8 $142) 26. Nxg7 {[%emt 0:00:00]} Rg6+ {[%emt 0:00:30]} 27. Kh1 {[%emt 0:00:00]} Kxg7 {[%emt 0:01:30]} 28. Rac1 {[%emt 0:00:30]} b5 {[%emt 0:00:30]} 29. b3 {[%emt 0:00:30]} Rc6 {[%emt 0:00:30]} 30. Rg1 {[%emt 0:02:30]} Kf6 {[%emt 0:03:30]} (30... Rxg1+ $16 {was necessary.} 31. Kxg1 Rxc1+ 32. Bxc1 f4) 31. Rxg6+ {[%emt 0:00:30]} hxg6 {[%emt 0:00:00]} 32. Kg2 {[%emt 0:03:30]} (32. Rxc6 $18 bxc6 33. a4 bxa4 34. bxa4) 32... Ra6 {[%emt 0:01:00]} 33. Rc2 {[%emt 0:00:30]} d5 {[%emt 0:04:41]} 34. Bb4 {[%emt 0:00:30]} g5 {[%emt 0:01:43]} 35. a3 {[%emt 0:00:30]} d4 {[%emt 0:00:25]} 36. Rc7 {[%emt 0:01:30]} Rc6 {[%emt 0:01:13]} 37. Be7+ {[%emt 0:01:30]} Ke6 {[%emt 0:05:20]} 38. Rxc6+ {[%emt 0:00:30]} bxc6 {[%emt 0:00:00]} 39. Bxg5 {[%emt 0:00:00]} f4 {[%emt 0:03:38]} 40. Kf2 {[%emt 0:05:00]} c5 {[%emt 0:00:30]} 41. Ke2 {[%emt 0:00:00]} c4 {[%emt 0:01:21]} 42. bxc4 {[%emt 0:00:00]} bxc4 {[%emt 0:00:30]} 43. h4 {[%emt 0:00:30]} Kf5 {[%emt 0:00:00]} 44. Bd8 {[%emt 0:01:30]} e4 {[%emt 0:00:00]} 45. Bb6 {[%emt 0:05:30]} Ke5 {[%emt 0:01:52]} 46. h5 {[%emt 0:00:30]} c3 {[%emt 0:00:40]} 47. h6 {[%emt 0:04:30]} c2 {[%emt 0:01:45]} 48. Kd2 {[%emt 0:03:30]} exf3 {[%emt 0:04:07]} 49. h7 {[%emt 0:00:00]} f2 {[%emt 0:02:42]} 50. h8=Q+ {[%emt 0:00:00]} Ke4 {[%emt 0:01:19]} 51. Qh1+ {[%emt 0:00:30]} f3 {[%emt 0:00:24]} 52. a4 {[%emt 0:00:30]} c1=Q+ {[%emt 0:01:14]} 53. Qxc1 {[%emt 0:00:00]} Kf4 {[%emt 0:01:06]} 1-0

[Event "7th Ali Ipek Memorial 2019"]
[Site "Ankara"]
[Date "2019.03.09"]
[Round "4.3"]
[White "Subasi, Fidel"]
[Black "Taspinar, Yanki"]
[Result "0-1"]
[ECO "D00"]
[WhiteElo "1692"]
[BlackElo "1792"]
[Annotator "NA"]
[PlyCount "66"]
[EventDate "2019.03.06"]
[EventType "swiss"]
[EventCountry "TUR"]
[SourceTitle "playchess.com"]
[Source "ChessBase"]
[SourceQuality "1"]
[TimeControl "5400+30"]

1. d4 {[%emt 0:00:30]} Nf6 {[%emt 0:00:30]} 2. Nc3 {[%emt 0:00:00]} d5 {[%emt 0:00:30]} 3. Bf4 {[%emt 0:00:00]} e6 {[%emt 0:00:30]} 4. e3 {[%emt 0:00:30]} c6 {[%emt 0:06:30]} 5. Bd3 {[%emt 0:00:30]} Be7 {[%emt 0:01:30]} 6. Nf3 {[%emt 0:02:30]} Nbd7 {[%emt 0:01:30]} 7. e4 {[%emt 0:04:30]} dxe4 {[%emt 0:00:30]} 8. Nxe4 {[%emt 0:00:30]} Nxe4 {[%emt 0:00:30]} 9. Bxe4 {[%emt 0:00:00]} Nf6 {[%emt 0:00:30]} 10. Bd3 {[%emt 0:00:00]} O-O {[%emt 0:00:30]} 11. c3 {[%emt 0:01:30]} Nd5 {[%emt 0:12:30]} 12. Be5 {[%emt 0:04:30]} Bf6 {[%emt 0:07:30]} 13. Qc2 {[%emt 0:01:30]} g6 {[%emt 0:00:30]} 14. h4 {[%emt 0:02:30]} Bxe5 {[%emt 0:23:30]} 15. dxe5 {[%emt 0:01:30]} f5 {[%emt 0:00:30]} 16. O-O-O {[%emt 0:02:30]} Qe7 {[%emt 0:00:30]} 17. Qd2 {[%emt 0:02:30]} h5 {[%emt 0:05:30]} 18. Ng5 {[%emt 0:03:30]} Kg7 {[%emt 0:03:30]} 19. Bc2 {[%emt 0:04:30]} b5 {[%emt 0:01:30]} 20. g3 {[%emt 0:02:30]} Bb7 {[%emt 0:01:30]} 21. f3 {[%emt 0:01:30]} Rad8 {[%emt 0:08:30]} 22. g4 {[%emt 0:04:30]} fxg4 {[%emt 0:09:06]} 23. fxg4 {[%emt 0:01:30]} hxg4 {[%emt 0:00:47]} 24. Qe2 {[%emt 0:03:30]} Rf4 {[%emt 0:01:35]} 25. Qd3 {[%emt 0:01:30]} Rf5 {[%emt 0:01:38]} 26. Rdg1 {[%emt 0:01:30]} c5 {[%emt 0:05:45]} 27. Rh2 {[%emt 0:18:30]} Nf4 {[%emt 0:04:07]} 28. Qe3 {[%emt 0:01:30]} Nd5 {[%emt 0:00:31]} 29. Qe2 {[%emt 0:01:30]} Rxg5 {[%emt 0:01:36]} 30. hxg5 {[%emt 0:00:30]} Qxg5+ {[%emt 0:00:01]} 31. Kb1 {[%emt 0:06:30]} g3 {[%emt 0:00:10]} 32. Qf3 {[%emt 0:04:30]} Nxc3+ {[%emt 0:00:25]} 33. Qxc3 {[%emt 0:03:39]} gxh2 {[%emt 0:00:05]} 0-1

[Event "7th Ali Ipek Memorial 2019"]
[Site "Ankara"]
[Date "2019.03.09"]
[Round "4.4"]
[White "Bingologlu, Furkan"]
[Black "Sekerci, Berkin"]
[Result "0-1"]
[ECO "C12"]
[WhiteElo "1578"]
[BlackElo "1711"]
[Annotator "NA"]
[PlyCount "86"]
[EventDate "2019.03.06"]
[EventType "swiss"]
[EventCountry "TUR"]
[SourceTitle "playchess.com"]
[Source "ChessBase"]
[SourceQuality "1"]
[TimeControl "5400+30"]

1. e4 {[%emt 0:00:30]} e6 {[%emt 0:00:30]} 2. d4 {[%emt 0:00:30]} d5 {[%emt 0:00:00]} 3. Nc3 {[%emt 0:00:00]} Nf6 {[%emt 0:00:00]} 4. Bg5 {[%emt 0:00:00]} Bb4 {[%emt 0:00:30]} 5. e5 {[%emt 0:04:30]} h6 {[%emt 0:00:00]} 6. Bd2 {[%emt 0:01:30]} Bxc3 {[%emt 0:00:00]} 7. bxc3 {[%emt 0:03:30]} Ne4 {[%emt 0:00:30]} 8. Qg4 {[%emt 0:05:30]} g6 {[%emt 0:00:30]} 9. Bd3 {[%emt 0:02:30]} Nxd2 {[%emt 0:00:30]} 10. Kxd2 {[%emt 0:00:30]} c5 {[%emt 0:00:30]} 11. h4 {[%emt 0:04:30]} c4 {[%emt 0:01:30]} 12. Be2 {[%emt 0:04:30]} Nd7 {[%emt 0:06:30]} 13. Nh3 {[%emt 0:03:30]} Rb8 {[%emt 0:01:30]} 14. Nf4 {[%emt 0:01:30]} Qe7 {[%emt 0:01:30]} 15. a3 {[%emt 0:07:30]} b5 {[%emt 0:01:30]} 16. Rh3 {[%emt 0:03:30]} a5 {[%emt 0:00:30]} 17. Rf3 {[%emt 0:04:30]} Rg8 {[%emt 0:03:30]} 18. Nh5 {[%emt 0:02:30]} Kd8 {[%emt 0:08:30]} 19. Nf6 {[%emt 0:00:30]} Nxf6 {[%emt 0:02:30]} 20. Rxf6 {[%emt 0:01:30]} b4 {[%emt 0:03:30]} 21. axb4 {[%emt 0:01:30]} axb4 {[%emt 0:00:30]} 22. Qf3 {[%emt 0:00:00]} Ke8 {[%emt 0:02:30]} 23. cxb4 {[%emt 0:03:00]} Qxb4+ {[%emt 0:00:30]} 24. Qc3 {[%emt 0:00:30]} Ke7 {[%emt 0:00:30]} 25. Qxb4+ {[%emt 0:05:30]} Rxb4 {[%emt 0:01:30]} 26. Kc3 {[%emt 0:00:00]} Rb7 {[%emt 0:02:30]} 27. g3 {[%emt 0:02:00]} h5 {[%emt 0:03:30]} 28. f3 {[%emt 0:06:30]} Bd7 {[%emt 0:01:30]} 29. g4 {[%emt 0:01:30]} Rh8 {[%emt 0:00:30]} 30. Rh1 {[%emt 0:04:30]} Rbb8 {[%emt 0:02:30]} 31. f4 {[%emt 0:09:27]} hxg4 {[%emt 0:01:30]} 32. Bxg4 {[%emt 0:00:33]} Rh7 {[%emt 0:01:30]} 33. h5 {[%emt 0:04:40]} Rbh8 {[%emt 0:01:30]} 34. Rg1 {[%emt 0:01:29]} gxh5 {[%emt 0:00:30]} 35. Bh3 {[%emt 0:00:42]} Ra8 {[%emt 0:02:30]} 36. Kd2 {[%emt 0:07:17]} Ra3 {[%emt 0:00:30]} 37. Rh1 {[%emt 0:00:47]} h4 {[%emt 0:03:30]} 38. Rh2 {[%emt 0:02:30]} Rg3 {[%emt 0:03:30]} 39. Rh1 {[%emt 0:02:45]} Rh5 {[%emt 0:07:30]} 40. Rh2 {[%emt 0:00:41]} Bb5 {[%emt 0:00:30]} 41. f5 {[%emt 0:00:53]} exf5 {[%emt 0:01:30]} 42. Bxf5 {[%emt 0:00:57]} c3+ {[%emt 0:00:30]} 43. Ke1 {[%emt 0:00:32]} Rg1+ {[%emt 0:00:30]} 0-1

[Event "7th Ali Ipek Memorial 2019"]
[Site "Ankara"]
[Date "2019.03.09"]
[Round "4.5"]
[White "Karabacak, Ceylin Deniz"]
[Black "Alkan, Omer Tarik"]
[Result "0-1"]
[ECO "B00"]
[WhiteElo "1392"]
[BlackElo "1717"]
[Annotator "NA"]
[PlyCount "64"]
[EventDate "2019.03.06"]
[EventType "swiss"]
[EventCountry "TUR"]
[SourceTitle "playchess.com"]
[Source "ChessBase"]
[SourceQuality "1"]
[TimeControl "5400+30"]

1. e4 {[%emt 0:07:30]} b6 {[%emt 0:03:30]} 2. d4 {[%emt 0:02:30]} Bb7 {[%emt 0:00:30]} 3. Nc3 {[%emt 0:05:30]} e6 {[%emt 0:00:30]} 4. Be3 {[%emt 0:01:30]} d5 {[%emt 0:00:00]} 5. exd5 {[%emt 0:06:30]} exd5 {[%emt 0:00:00]} 6. Nf3 {[%emt 0:00:00]} Nf6 {[%emt 0:00:30]} 7. h3 {[%emt 0:05:00]} Be7 {[%emt 0:01:30]} 8. Bd3 {[%emt 0:01:30]} O-O {[%emt 0:01:30]} 9. O-O {[%emt 0:01:30]} c5 {[%emt 0:00:30]} 10. Re1 {[%emt 0:05:30]} Ba6 {[%emt 0:08:30]} 11. Bxa6 {[%emt 0:04:30]} Nxa6 {[%emt 0:00:30]} 12. a3 {[%emt 0:00:30]} Nc7 {[%emt 0:00:30]} 13. Ne5 {[%emt 0:07:30]} Bd6 {[%emt 0:02:30]} 14. Bg5 {[%emt 0:11:30]} h6 {[%emt 0:09:30]} 15. Bxf6 {[%emt 0:16:37]} gxf6 {[%emt 0:14:30]} 16. Qg4+ {[%emt 0:14:05]} Kh8 {[%emt 0:00:30]} 17. Nc6 {[%emt 0:02:04]} Qc8 {[%emt 0:00:00]} 18. Qh5 {[%emt 0:03:49]} Kg7 {[%emt 0:17:00]} 19. Nxd5 {[%emt 0:00:55]} Nxd5 {[%emt 0:00:30]} 20. Qxd5 {[%emt 0:00:30]} Qd7 {[%emt 0:00:30]} 21. Ne5 {[%emt 0:00:57]} Qd8 {[%emt 0:00:30]} 22. Nc6 {[%emt 0:00:02]} Bh2+ {[%emt 0:00:30]} 23. Kxh2 {[%emt 0:00:30]} Qxd5 {[%emt 0:00:30]} 24. Ne7 {[%emt 0:00:01]} Qd7 {[%emt 0:00:30]} 25. dxc5 {[%emt 0:00:16]} Rfe8 {[%emt 0:00:30]} 26. cxb6 {[%emt 0:00:48]} axb6 {[%emt 0:00:30]} 27. c3 {[%emt 0:01:21]} Rxe7 {[%emt 0:00:30]} 28. Red1 {[%emt 0:00:30]} Qc7+ {[%emt 0:00:00]} 29. Kg1 {[%emt 0:00:20]} Re2 {[%emt 0:00:00]} 30. Rd4 {[%emt 0:00:30]} Rae8 {[%emt 0:00:30]} 31. Rdd1 {[%emt 0:00:40]} Qf4 {[%emt 0:00:00]} 32. Rf1 {[%emt 0:00:30]} Rxb2 {[%emt 0:00:00]} 0-1